bitfinex-derivatives/quotes_BTCF0:USTF0_20210108
["timestamp","ask_amount","ask_price","bid_price","bid_amount"]
[1610085520374,0.00699553,37936.0,37904.0,0.03261357]
[1610085520577,0.00699553,37936.0,37913.0,0.03261185]
[1610085520776,0.0070021,37934.0,37902.0,0.03261218]
[1610085520977,0.0070021,37934.0,37914.0,0.03261163]
[1610085521277,0.00700121,37932.0,37901.0,0.09863]
[1610085521676,0.02088223,37932.0,37904.0,0.03261347]
[1610085521878,0.02088223,37932.0,37902.0,0.03261514]
[1610085522081,0.02089723,37931.0,37905.0,0.03261485]
[1610085522380,0.00701766,37929.0,37904.0,0.03261526]
[1610085522580,0.00701766,37929.0,37906.0,0.03261531]
[1610085522777,0.02092155,37929.0,37906.0,0.03261531]
[1610085522976,0.02092155,37929.0,37905.0,0.03261503]
[1610085523176,0.0070209,37928.0,37904.0,0.03261501]
[1610085523378,0.0070209,37928.0,37906.0,0.03261504]
[1610085523778,0.0070209,37928.0,37905.0,0.03261472]
[1610085523980,0.0070209,37928.0,37903.0,0.13632608]
[1610085523981,0.0070209,37928.0,37907.0,0.03261457]
[1610085524179,0.0070209,37928.0,37906.0,0.03261457]
[1610085524382,0.0070209,37928.0,37908.0,0.03261434]
[1610085524780,0.0070209,37928.0,37907.0,0.03261439]
[1610085524982,0.0070209,37928.0,37909.0,0.03261443]
[1610085525182,0.0070209,37928.0,37908.0,0.03261325]
[1610085525383,0.02094331,37929.0,37908.0,0.03261325]
[1610085525581,0.02094331,37929.0,37910.0,0.03261382]
[1610085525883,0.00704886,37928.0,37904.0,0.03261387]
[1610085526082,0.13632608,37905.0,37903.0,0.13632608]
[1610085526481,0.13632608,37905.0,37904.0,0.03232259]
[1610085526782,0.13632608,37905.0,37904.0,0.03261443]
[1610085527581,4.0912,37918.0,37904.0,0.03261443]
[1610085527783,0.00705994,37925.0,37904.0,0.03261443]
[1610085527984,0.00705994,37925.0,37924.0,0.13632608]
[1610085528184,0.0070587,37927.0,37924.0,0.13632608]
[1610085528384,0.0070587,37927.0,37924.0,0.16893721]
[1610085528586,0.02105129,37930.0,37924.0,0.16893721]
[1610085528785,0.02105129,37930.0,37925.0,0.03260755]
[1610085528989,0.69261532,37940.0,37925.0,0.03260755]
[1610085528990,0.02106199,37934.0,37925.0,0.03260755]
[1610085529488,0.02107393,37937.0,37925.0,0.03260755]
[1610085529889,0.00707317,37939.0,37925.0,0.03260755]
[1610085530190,0.49942134,37942.0,37925.0,0.03260755]
[1610085530191,0.00707244,37941.0,37938.0,0.13632608]
[1610085530590,0.02110427,37945.0,37938.0,0.16892128]
[1610085530790,0.02110427,37945.0,37939.0,0.03259507]
[1610085531089,0.02110427,37945.0,37938.0,0.13632608]
[1610085531290,0.02110427,37945.0,37940.0,0.03259547]
[1610085531492,0.00709342,37944.0,37941.0,0.03259503]
[1610085531790,0.00709289,37943.0,37941.0,0.03259503]
[1610085531989,0.13632608,37942.0,37941.0,0.03259503]
[1610085532789,0.13632608,37942.0,37937.0,0.13632608]
[1610085533193,0.13632608,37942.0,37938.0,0.03042827]
[1610085533492,0.14343441,37942.0,37938.0,0.03042827]
[1610085533890,0.13632608,37942.0,37938.0,0.03042827]
[1610085536095,0.13632608,37942.0,37941.0,0.13632608]
[1610085536496,0.13632608,37942.0,37941.0,0.16675116]
[1610085537996,0.13632608,37946.0,37941.0,0.16675116]
[1610085538597,0.13632608,37946.0,37942.0,0.03042504]
[1610085539200,0.00711493,37945.0,37938.0,0.08827115]
[1610085539398,0.00711493,37945.0,37943.0,0.03042783]
[1610085539801,0.02119642,37943.0,37939.0,0.03042948]
[1610085540000,0.13632608,37940.0,37933.0,0.13632608]
[1610085540501,0.02121158,37939.0,37934.0,0.03043256]
[1610085540901,0.14345004,37940.0,37934.0,0.03043256]
[1610085542203,0.13632608,37935.0,37934.0,0.03043256]
[1610085543703,0.00712948,37944.0,37934.0,0.03043256]
[1610085543904,0.00712687,37945.0,37934.0,0.03043256]
[1610085544103,0.00712687,37945.0,37944.0,0.13632608]
[1610085544304,0.46662242,37946.0,37944.0,0.13632608]
[1610085544603,0.46662242,37946.0,37944.0,0.16675445]
[1610085544804,0.46662242,37946.0,37945.0,0.03042858]
[1610085545006,0.00711519,37947.0,37944.0,0.13471162]
[1610085545506,0.02121317,37948.0,37945.0,0.0304281]
[1610085546006,0.00714812,37951.0,37945.0,0.0304281]
[1610085546206,0.00714812,37951.0,37950.0,0.13632608]
[1610085546407,0.13632608,37952.0,37950.0,0.13632608]
[1610085546605,0.13632608,37952.0,37950.0,0.16675051]
[1610085546906,0.13632608,37952.0,37951.0,0.03042414]
[1610085551010,0.13632608,37952.0,37935.0,0.03042035]
[1610085551211,0.56040027,37952.0,37935.0,0.03042035]
[1610085551410,1.00390027,37952.0,37935.0,0.03042035]
[1610085551611,0.00720234,37949.0,37935.0,0.03042035]
[1610085552013,0.00720273,37948.0,37935.0,0.03042035]
[1610085552213,0.13632608,37936.0,37935.0,0.03042035]
[1610085552413,0.13632608,37936.0,37931.0,0.13632608]
[1610085552615,0.13632608,37936.0,37935.0,0.03042775]
[1610085552913,0.13632608,37936.0,37932.0,0.03042862]
[1610085553212,0.13632608,37936.0,37915.0,0.05784937]
[1610085553213,0.13632608,37936.0,37935.0,0.03042798]
[1610085553514,0.13632608,37936.0,37927.0,0.03042877]
[1610085553814,0.13632608,37936.0,37909.0,0.08738974]
[1610085553815,0.13632608,37936.0,37935.0,0.03042931]
[1610085554013,0.13632608,37936.0,37928.0,0.03042976]
[1610085554213,0.02143606,37942.0,37915.0,0.05785065]
[1610085554214,0.00719236,37942.0,37935.0,0.03042948]
[1610085554414,0.00719236,37942.0,37941.0,0.5]
[1610085554614,0.02142988,37942.0,37941.0,0.5]
[1610085554915,0.42281626,37942.0,37941.0,0.5304309]
[1610085555216,0.42281626,37942.0,37941.0,0.0304309]
[1610085555418,0.42281626,37942.0,37941.0,0.0882846]
[1610085555917,0.00719539,37942.0,37938.0,0.49838538]
[1610085556116,0.00719539,37942.0,37941.0,0.16675538]
[1610085556316,0.00719539,37942.0,37941.0,0.13632608]
[1610085556617,0.0072042,37946.0,37941.0,0.16675206]
[1610085556818,0.02147532,37947.0,37942.0,0.03042473]
[1610085557319,0.00721261,37949.0,37942.0,0.53042473]
[1610085557720,0.00721811,37952.0,37942.0,0.53042473]
[1610085557917,0.00721811,37952.0,37943.0,0.03042253]
[1610085558120,0.0072163,37950.0,37949.0,0.13632608]
[1610085558418,0.00721708,37951.0,37949.0,0.13632608]
[1610085558717,0.00721708,37951.0,37949.0,0.16674909]
[1610085558918,0.00721708,37951.0,37950.0,0.03042315]
[1610085559918,0.00721841,37952.0,37950.0,0.03042315]
[1610085560517,0.50967603,37956.0,37950.0,0.03042315]
[1610085560518,0.00722177,37955.0,37950.0,0.03042315]
[1610085561020,0.00722654,37957.0,37950.0,0.03042315]
[1610085561819,0.02154532,37959.0,37950.0,0.03042315]
[1610085562219,0.00723114,37958.0,37950.0,0.03042315]
[1610085562520,0.00722588,37959.0,37943.0,0.08825556]
[1610085562921,0.00722588,37959.0,37951.0,0.03041684]
[1610085563119,0.00722588,37959.0,37943.0,0.08825492]
[1610085563320,0.15785264,37960.0,37952.0,0.03041651]
[1610085563820,0.00721108,37959.0,37943.0,0.08825562]
[1610085564120,0.00721108,37959.0,37945.0,0.03041713]
[1610085564321,0.01427872,37959.0,37958.0,0.13632608]
[1610085564724,0.00720758,37959.0,37958.0,0.1667433]
[1610085565123,0.15780892,37960.0,37958.0,0.1667433]
[1610085565425,0.14353508,37960.0,37959.0,0.0304172]
[1610085566423,0.13632608,37960.0,37959.0,0.0304172]
[1610085566824,0.13632608,37960.0,37958.0,0.13471224]
[1610085568727,0.14352119,37960.0,37958.0,0.13471224]
[1610085569028,0.13632608,37960.0,37958.0,0.13471224]
[1610085569628,0.13632608,37960.0,37945.0,0.14518694]
[1610085569829,0.14352088,37960.0,37945.0,0.14518694]
[1610085570028,0.14352088,37960.0,37945.0,0.17560394]
[1610085570229,0.0071948,37960.0,37956.0,0.13632608]
[1610085570733,0.0071948,37960.0,37957.0,0.0304168]
[1610085570930,0.02144041,37961.0,37957.0,0.0304168]
[1610085571131,0.00719477,37960.0,37957.0,0.0304168]
[1610085571634,0.02144088,37961.0,37957.0,0.0304168]
[1610085572036,0.00719529,37961.0,37957.0,0.0304168]
[1610085572235,0.00719529,37961.0,37960.0,0.13632608]
[1610085572436,0.00719813,37963.0,37960.0,0.13632608]
[1610085572735,0.00719813,37963.0,37960.0,0.16674145]
[1610085573036,0.00719924,37964.0,37961.0,0.03041585]
[1610085574538,0.0372367,37968.0,37961.0,0.03041585]
[1610085574938,0.03,37968.0,37961.0,0.03041585]
[1610085575337,0.00724973,37972.0,37961.0,0.03041585]
[1610085575537,0.089,37975.0,37961.0,0.03041585]
[1610085576338,0.089,37975.0,37973.0,0.13632608]
[1610085576540,0.14359005,37974.0,37973.0,0.13632608]
[1610085576838,0.14359005,37974.0,37973.0,0.16673741]
[1610085577138,0.14359005,37974.0,37973.0,0.16512398]
[1610085578444,0.56445529,37974.0,37973.0,0.16512398]
[1610085579241,0.14361254,37974.0,37973.0,0.16512398]
[1610085579642,0.13632608,37974.0,37973.0,0.16512398]
[1610085580242,0.15076576,37974.0,37973.0,0.16512398]
[1610085580643,0.14361428,37974.0,37973.0,0.16512398]
[1610085580945,0.13632608,37974.0,37973.0,0.16512398]
[1610085583547,0.1579425,37974.0,37973.0,0.03041133]
[1610085583945,0.14357896,37974.0,37963.0,0.03041143]
[1610085584148,0.14357896,37974.0,37973.0,0.03041166]
[1610085584348,0.57714053,37974.0,37967.0,0.13632608]
[1610085584849,1.07443295,37974.0,37968.0,0.03041184]
[1610085585249,0.00725819,37973.0,37968.0,0.03041184]
[1610085585648,0.0216243,37971.0,37968.0,0.03041184]
[1610085586349,0.13632608,37969.0,37968.0,0.03041184]
[1610085588556,0.14358569,37969.0,37968.0,0.03041184]
[1610085589255,4.22045656,37969.0,37953.0,0.14515792]
[1610085589457,4.73210473,37969.0,37953.0,0.14515792]
[1610085589656,4.73210473,37969.0,37938.0,0.17559337]
[1610085589855,0.00723505,37958.0,37954.0,0.03041671]
[1610085590256,0.00723505,37958.0,37940.0,0.13632608]
[1610085590456,0.00723135,37956.0,37940.0,0.13632608]
[1610085590655,0.00723135,37956.0,37941.0,0.03041999]
[1610085590857,0.00721726,37954.0,37941.0,0.03041999]
[1610085591158,0.00721095,37953.0,37941.0,0.03041999]
[1610085592258,0.13632608,37942.0,37935.0,0.13632608]
[1610085592957,0.13632608,37942.0,37936.0,0.03171276]
[1610085594459,0.02145968,37946.0,37941.0,0.13632608]
[1610085594662,0.00720254,37945.0,37942.0,0.03171333]
[1610085595061,0.00720913,37948.0,37942.0,0.03171333]
[1610085595461,0.0072149,37949.0,37942.0,0.03171333]
[1610085595762,0.02151127,37949.0,37942.0,0.03171333]
[1610085596163,0.0072149,37949.0,37942.0,0.03171333]
[1610085596363,0.13632608,37943.0,37942.0,0.03171333]
[1610085597565,0.13632608,37943.0,37941.0,0.13632608]
[1610085597865,0.13632608,37943.0,37942.0,0.03171272]
[1610085599867,0.13632608,37943.0,37939.0,0.03171483]
[1610085600068,0.13632608,37943.0,37942.0,0.03171494]
[1610085600471,0.13632608,37943.0,37939.0,0.5317151]
[1610085600769,0.13632608,37943.0,37942.0,0.5317149]
[1610085600970,0.13632608,37943.0,37940.0,0.05970766]
[1610085601170,0.13632608,37943.0,37942.0,0.05970731]
[1610085601371,0.13632608,37943.0,37942.0,0.00028872]
[1610085601570,0.13632608,37943.0,37938.0,0.03171458]
[1610085601772,0.13632608,37943.0,37942.0,0.03171435]
[1610085601972,0.13632608,37943.0,37939.0,0.0317143]
[1610085602270,0.13632608,37943.0,37941.0,0.13632608]
[1610085602671,0.13632608,37943.0,37942.0,0.03142455]
[1610085602871,0.13632608,37943.0,37942.0,0.03171327]
[1610085607378,0.13632608,37943.0,37942.0,0.53171327]
[1610085607577,0.14354762,37943.0,37942.0,0.53171327]
[1610085607778,0.14354762,37943.0,37942.0,0.59113455]
[1610085607978,0.57526108,37943.0,37942.0,0.59113455]
[1610085608276,0.15061765,37943.0,37942.0,0.59113455]
[1610085608678,0.13632608,37943.0,37942.0,0.59113455]
[1610085610377,0.15785857,37947.0,37942.0,0.59113455]
[1610085610577,0.15785857,37947.0,37943.0,0.03171383]
[1610085611177,0.14355326,37947.0,37943.0,0.03171383]
[1610085612079,0.00722718,37947.0,37943.0,0.03171383]
[1610085612480,0.00722718,37947.0,37946.0,0.13632608]
[1610085612980,0.00725463,37950.0,37946.0,0.168038]
[1610085613383,0.00725802,37952.0,37947.0,0.03171167]
[1610085614084,0.22123976,37961.0,37947.0,1.53171167]
[1610085614384,0.51553814,37969.0,37968.0,0.13632608]
[1610085614783,0.51658084,37974.0,37973.0,3.9231]
[1610085615282,0.51812742,37981.0,37973.0,3.9231]
[1610085615483,0.51812742,37981.0,37973.0,4.01415314]
[1610085615682,0.51879691,37984.0,37974.0,0.09104882]
[1610085616084,0.51961802,37989.0,37974.0,0.20409882]
[1610085616485,0.51980002,37993.0,37988.0,0.13632608]
[1610085616684,0.51980002,37993.0,37989.0,0.0316794]
[1610085617286,0.51984484,37994.0,37989.0,0.0316794]
[1610085618390,0.51984484,37994.0,37993.0,0.13632608]
[1610085618589,0.51958955,37995.0,37993.0,0.13632608]
[1610085618788,0.51958955,37995.0,37993.0,0.16800462]
[1610085618990,0.51960351,37996.0,37994.0,0.03167812]
[1610085619891,0.65561484,37997.0,37993.0,0.13471362]
[1610085620590,0.65561484,37997.0,37978.0,3.1586]
[1610085621191,0.65561484,37997.0,37979.0,0.03167946]
[1610085621392,0.00302618,37992.0,37979.0,0.03167946]
[1610085621793,0.00302392,37991.0,37979.0,0.03167946]
[1610085622095,0.00302258,37989.0,37979.0,0.03167946]
[1610085622493,0.00302258,37989.0,37988.0,0.13632608]
[1610085622693,0.76977159,37997.0,37988.0,0.13632608]
[1610085622694,0.00302542,37990.0,37988.0,0.13661448]
[1610085623094,0.0030293,37993.0,37989.0,3.3297884]
[1610085623294,0.0030293,37993.0,37989.0,3.36117862]
[1610085623496,0.52012808,38001.0,37989.0,0.03167862]
[1610085623795,0.00303409,37997.0,37990.0,0.03167946]
[1610085624195,0.00303171,37996.0,37989.0,0.03167981]
[1610085624395,0.00303171,37996.0,37995.0,0.13632608]
[1610085624598,0.00303096,37997.0,37995.0,0.13632608]
[1610085624996,0.00303096,37997.0,37996.0,0.0002884]
[1610085625497,0.00302974,37998.0,37996.0,0.0002884]
[1610085626298,0.00303223,37997.0,37996.0,0.0002884]
[1610085626701,0.00303014,38000.0,37996.0,0.0002884]
[1610085627402,0.00302878,38003.0,37999.0,3.3015]
[1610085628004,0.80781824,38019.0,37999.0,3.3015]
[1610085628005,0.0030311,38005.0,38000.0,0.00028836]
[1610085628403,0.0030311,38005.0,38004.0,0.13632608]
[1610085628904,0.51929361,38007.0,38004.0,0.13632608]
[1610085629104,0.51929361,38007.0,38004.0,0.13661446]
[1610085629304,0.51929361,38007.0,38005.0,0.00028838]
[1610085629507,0.5195961,38008.0,38005.0,0.00028838]
[1610085629807,0.51980214,38009.0,38004.0,0.1347138]
[1610085630505,0.51980214,38009.0,38008.0,0.13632608]
[1610085631003,0.51980214,38009.0,38008.0,0.13661445]
[1610085631604,0.52007375,38010.0,38008.0,0.13661445]
[1610085632307,0.52007375,38010.0,38009.0,0.00028837]
[1610085632506,0.65639983,38010.0,38009.0,0.00028837]
[1610085632807,1.04336231,38010.0,38009.0,0.00028837]
[1610085634412,0.13632608,38010.0,38009.0,0.00028837]
[1610085638315,0.13936214,38010.0,38009.0,0.00028837]
[1610085638615,0.47736871,38010.0,38009.0,0.00028837]
[1610085639915,1.38650123,38010.0,38009.0,0.00028837]
[1610085640417,0.99954514,38010.0,38009.0,0.00028837]
[1610085640615,0.47736871,38010.0,38009.0,0.00028837]
[1610085640816,0.47736871,38010.0,38004.0,0.13632608]
[1610085641218,0.47736871,38010.0,38009.0,0.00028837]
[1610085641419,0.47736871,38010.0,38005.0,0.03167407]
[1610085641619,0.00304924,38009.0,38004.0,0.13471384]
[1610085641818,0.48041785,38010.0,38004.0,0.13471384]
[1610085642017,0.47041785,38010.0,38009.0,0.5]
[1610085642521,0.46736871,38010.0,38009.0,0.66799857]
[1610085643720,0.45736871,38010.0,38009.0,0.66799857]
[1610085644318,0.44896871,38010.0,38009.0,0.66799857]
[1610085644520,0.44896871,38010.0,38009.0,0.53167249]
[1610085645922,0.34104263,38010.0,38009.0,0.53167249]
[1610085646520,0.34104263,38010.0,38009.0,0.66799857]
[1610085647522,0.34104263,38010.0,38009.0,0.74516608]
[1610085647722,0.34104263,38010.0,38009.0,0.83613709]
[1610085650726,0.34104263,38010.0,38009.0,0.33613709]
[1610085651026,0.34104263,38010.0,38009.0,0.83613709]
[1610085651226,0.34104263,38010.0,38009.0,0.77682416]
[1610085651426,0.34104263,38010.0,38009.0,0.69981569]
[1610085651926,0.34104263,38010.0,38009.0,0.64049808]
[1610085652527,0.47736871,38010.0,38009.0,0.41954]
[1610085653129,0.56787871,38010.0,38009.0,0.41954]
[1610085653326,0.56787871,38010.0,38009.0,0.21374]
[1610085653531,0.56787871,38010.0,37973.0,0.09051]
[1610085653731,3.773,38005.0,37973.0,0.09051]
[1610085653928,3.773,38005.0,37974.0,0.03212359]
[1610085654429,3.773,38005.0,37977.0,0.13632608]
[1610085654829,3.77602862,38005.0,37978.0,0.03212365]
[1610085655735,3.773,38005.0,37978.0,0.03212365]
[1610085656130,0.00303283,38005.0,37978.0,0.03212365]
[1610085656531,0.13632608,37979.0,37978.0,0.03212365]
[1610085656933,0.13632608,37979.0,37974.0,0.03212516]
[1610085657432,0.13632608,37979.0,37968.0,0.03212646]
[1610085657833,0.13632608,37979.0,37978.0,0.03212649]
[1610085658034,0.13632608,37979.0,37969.0,0.03212713]
[1610085658236,0.13632608,37979.0,37978.0,0.03212756]
[1610085658535,0.13632608,37979.0,37974.0,0.13632608]
[1610085658834,0.13632608,37979.0,37978.0,0.03212936]
[1610085659034,0.13632608,37979.0,37975.0,0.03212785]
[1610085659233,0.13632608,37979.0,37975.0,0.03183853]
[1610085659434,0.00303308,37995.0,37974.0,0.13632608]
[1610085659635,0.10386,38001.0,37974.0,0.13632608]
[1610085659636,0.00303515,37996.0,37976.0,0.03212709]
[1610085659834,0.00303515,37996.0,37975.0,0.03212522]
[1610085660035,0.43373694,37998.0,37975.0,0.03212522]
[1610085660036,0.00303733,37998.0,37975.0,0.03212522]
[1610085660236,0.00303733,37998.0,37977.0,0.00028925]
[1610085660436,0.00304273,38003.0,37991.0,0.13632608]
[1610085660738,0.00304304,38004.0,37991.0,0.13632608]
[1610085660938,0.00304304,38004.0,37992.0,0.03211752]
[1610085661540,0.00304972,38005.0,37992.0,0.03211752]
[1610085662537,0.00305136,38006.0,38005.0,0.13632608]
[1610085662939,0.00305513,38009.0,38005.0,0.13661527]
[1610085663138,0.00305513,38009.0,38005.0,0.16843932]
[1610085663440,0.00305881,38010.0,38009.0,0.49838806]
[1610085664037,0.00305972,38011.0,38009.0,0.53049988]
[1610085664538,0.00306483,38013.0,38012.0,0.13632608]
[1610085664839,0.00306893,38017.0,38012.0,0.13632608]
[1610085665242,0.00306941,38018.0,38013.0,0.03210835]
[1610085666637,0.00306941,38018.0,38017.0,0.13632608]
[1610085666838,0.00307986,38019.0,38017.0,0.13632608]
[1610085667038,0.00307986,38019.0,38017.0,0.16843038]
[1610085667240,0.00308033,38020.0,38018.0,0.03210282]
[1610085667641,0.73355949,38031.0,38018.0,0.03210282]
[1610085667642,0.00308489,38019.0,38018.0,0.03210282]
[1610085668044,0.44076019,38020.0,38018.0,0.03210282]
[1610085668242,0.05405955,38011.0,38010.0,0.05987217]
[1610085668644,0.19038563,38011.0,38010.0,0.19619825]
[1610085668844,0.19038563,38011.0,38010.0,0.1684279]
[1610085669045,0.19038563,38011.0,38010.0,0.22829336]
[1610085670046,0.19038563,38011.0,38010.0,0.1684279]
[1610085671045,0.19038563,38011.0,38010.0,0.03210182]
[1610085671546,0.19349564,38011.0,38006.0,0.53210478]
[1610085671746,0.19349564,38011.0,38010.0,0.03210545]
[1610085671947,0.19349564,38011.0,38006.0,0.5]
[1610085671948,0.63477252,38011.0,38007.0,0.0321012]
[1610085672147,0.63477252,38011.0,38010.0,0.03210279]
[1610085672447,1.16781089,38011.0,38008.0,0.03210417]
[1610085672848,1.16781089,38011.0,38010.0,0.03210439]
[1610085673048,1.03865591,38010.0,38009.0,0.03210508]
[1610085673249,1.03865591,38010.0,38006.0,0.5]
[1610085673450,1.03865591,38010.0,38009.0,0.03210526]
[1610085673752,1.63210063,38010.0,38007.0,0.03210576]
[1610085674150,0.98058701,38008.0,38002.0,0.03210631]
[1610085674449,0.98058701,38008.0,37993.0,0.10621]
[1610085674650,0.13632608,38002.0,37983.0,0.13632608]
[1610085674950,0.00311873,37995.0,37994.0,0.03210954]
[1610085675151,0.00311873,37995.0,37986.0,0.03211168]
[1610085675354,0.00311873,37995.0,37983.0,0.13632608]
[1610085675355,0.98014882,37995.0,37983.0,0.13632608]
[1610085675752,0.65338306,37997.0,37983.0,0.13632608]
[1610085675753,0.00311696,37989.0,37984.0,0.03211193]
[1610085676354,0.00311648,37991.0,37984.0,0.03211193]
[1610085676656,0.00311775,37992.0,37990.0,0.13632608]
[1610085676853,0.44554181,37995.0,37990.0,0.13632608]
[1610085677054,0.00311492,37993.0,37990.0,0.16843716]
[1610085677254,0.00311492,37993.0,37991.0,0.03210987]
[1610085677456,0.00311399,37994.0,37991.0,0.03210987]
[1610085677856,0.00311606,37997.0,37991.0,0.03210987]
[1610085678255,0.00311606,37997.0,37990.0,0.13632608]
[1610085678457,0.16914802,38001.0,37992.0,0.03210583]
[1610085678657,0.13632608,38000.0,37998.0,0.13632608]
[1610085679057,0.13632608,38000.0,37999.0,0.03210403]
[1610085679256,0.13632608,38000.0,37998.0,0.13632608]
[1610085679456,0.13632608,38000.0,37998.0,0.24352608]
[1610085679655,0.13632608,38000.0,37999.0,0.03210186]
[1610085679856,0.53669025,38008.0,37999.0,0.06420311]
[1610085680558,0.53669025,38008.0,38007.0,0.13632608]
[1610085680757,0.59005135,38011.0,38007.0,0.13632608]
[1610085680956,0.59005135,38011.0,38010.0,0.5]
[1610085681157,0.05405955,38011.0,38010.0,0.5]
[1610085681358,0.05405955,38011.0,38010.0,0.50028906]
[1610085681558,0.05405955,38011.0,38010.0,0.53209643]
[1610085682359,0.97744159,38011.0,38010.0,0.53209643]
[1610085682559,1.11376767,38011.0,38010.0,0.53209643]
[1610085683561,1.76980165,38011.0,38010.0,0.53209643]
[1610085683761,1.76980165,38011.0,38010.0,0.03209643]
[1610085684362,1.76980165,38011.0,38008.0,0.03210111]
[1610085684661,1.76980165,38011.0,38010.0,0.03210121]
[1610085684961,1.76980165,38011.0,38007.0,0.5]
[1610085684962,0.19038563,38011.0,38009.0,0.03210055]
[1610085685162,0.19038563,38011.0,38010.0,0.03210082]
[1610085685364,1.77332467,38011.0,38010.0,0.03210082]
[1610085685563,1.77332467,38011.0,38008.0,0.03209905]
[1610085685764,1.1154218,38011.0,38008.0,0.03209905]
[1610085686062,1.1154218,38011.0,38000.0,0.09196494]
[1610085686364,0.72869698,38011.0,38010.0,0.03209709]
[1610085686764,0.72869698,38011.0,38000.0,0.03209693]
[1610085686963,0.72869698,38011.0,38010.0,0.03209856]
[1610085687164,1.11542222,38011.0,38001.0,0.03210015]
[1610085687565,1.38658896,38011.0,38000.0,0.03210011]
[1610085687764,0.5384789,38004.0,38002.0,0.03210059]
[1610085687963,0.5384789,38004.0,38001.0,0.03210142]
[1610085688264,0.5384789,38004.0,38000.0,0.03210244]
[1610085688465,0.53849191,38003.0,38002.0,0.03210285]
[1610085688867,0.53849191,38003.0,38001.0,0.03210241]
[1610085689067,0.53849191,38003.0,38000.0,0.03210335]
[1610085689265,0.53766992,38002.0,38000.0,0.00028911]
[1610085689465,0.53766992,38002.0,37999.0,0.53210186]
[1610085689665,0.7459565,38004.0,38001.0,0.03210453]
[1610085689865,0.7459565,38004.0,38000.0,0.03210615]
[1610085690067,0.7459565,38004.0,38000.0,0.00028913]
[1610085690068,1.93588979,38002.0,38000.0,0.00028913]
[1610085690267,1.93588979,38002.0,37999.0,0.53210186]
[1610085690468,1.93588979,38002.0,38001.0,0.03210785]
[1610085690669,1.93588979,38002.0,38000.0,0.5]
[1610085690670,0.13632608,38002.0,38000.0,0.53210954]
[1610085690869,0.13632608,38002.0,38001.0,0.03210971]
[1610085691068,0.13632608,38002.0,38000.0,0.4983881]
[1610085691069,3.29021424,38002.0,38000.0,0.4983881]
[1610085691571,5.0259,38001.0,38000.0,0.3328881]
[1610085691871,7.5236014,38001.0,38000.0,0.3328881]
[1610085692070,8.75800111,38001.0,38000.0,0.22989962]
[1610085692468,8.75800111,38001.0,38000.0,0.14928221]
[1610085692669,0.04406868,37999.0,37963.0,0.14950114]
[1610085692870,0.13264868,37999.0,37963.0,0.14950114]
[1610085693069,1.5,37998.0,37963.0,0.18162257]
[1610085693271,0.53217803,37977.0,37963.0,0.0920072]
[1610085693471,0.53217803,37977.0,37964.0,0.03212426]
[1610085693769,0.53130047,37974.0,37964.0,0.03212426]
[1610085694070,3.57314238,37970.0,37937.0,0.03212665]
[1610085694271,3.57314238,37970.0,37965.0,0.03184075]
[1610085694473,0.53019561,37969.0,37965.0,0.03213011]
[1610085694670,0.13632608,37966.0,37938.0,0.03213145]
[1610085694873,0.13632608,37966.0,37936.0,0.47563999]
[1610085694874,0.0194,37964.0,37936.0,0.47563999]
[1610085695072,0.0194,37964.0,37939.0,0.03213211]
[1610085695373,0.0194,37964.0,37937.0,0.03213202]
[1610085695575,0.0194,37964.0,37940.0,0.03213154]
[1610085695775,3.1782,37950.0,37940.0,0.03213154]
[1610085695977,3.1782,37950.0,37938.0,0.03213424]
[1610085696177,3.1782,37950.0,37936.0,0.2794]
[1610085696178,3.1782,37950.0,37941.0,0.00028939]
[1610085696376,3.1782,37950.0,37939.0,0.03213473]
[1610085696576,0.13632608,37940.0,37939.0,0.03213473]
[1610085696777,0.13632608,37940.0,37938.0,0.03184554]
[1610085696976,0.13632608,37940.0,37936.0,0.2794]
[1610085696977,0.13632608,37940.0,37939.0,0.03214027]
[1610085697575,0.13632608,37940.0,37937.0,0.03214279]
[1610085697777,0.13632608,37940.0,37939.0,0.0321438]
[1610085697976,0.13632608,37940.0,37938.0,0.03214362]
[1610085698377,0.13632608,37940.0,37939.0,0.03214325]
[1610085698579,0.13632608,37940.0,37939.0,0.16846933]
[1610085698778,0.13632608,37940.0,37939.0,0.13632608]
[1610085699178,0.13632608,37940.0,37939.0,0.16846825]
[1610085699380,0.13632608,37940.0,37939.0,0.03214217]
[1610085699878,0.13632608,37940.0,37937.0,0.03214245]
[1610085700180,0.13632608,37940.0,37939.0,0.03214247]
[1610085700380,0.13632608,37940.0,37938.0,0.03214225]
[1610085700680,0.13632608,37940.0,37939.0,0.03214225]
[1610085701280,0.13632608,37940.0,37937.0,0.03213969]
[1610085701480,0.13632608,37940.0,37939.0,0.03213832]
[1610085701681,0.13632608,37940.0,37938.0,0.03184988]
[1610085701983,0.13632608,37940.0,37936.0,0.2794]
[1610085701984,0.13632608,37940.0,37937.0,0.03213932]
[1610085702282,0.13632608,37940.0,37939.0,0.03213937]
[1610085702482,0.13632608,37940.0,37938.0,0.03214077]
[1610085702681,0.13632608,37940.0,37939.0,0.13632608]
[1610085703083,0.13632608,37940.0,37939.0,0.16846668]
[1610085704688,0.58282608,37940.0,37939.0,0.16846668]
[1610085705386,0.4465,37940.0,37939.0,0.16846668]
[1610085706588,0.58282608,37940.0,37939.0,0.16846668]
[1610085708288,0.58282608,37940.0,37939.0,0.0321406]
[1610085708689,0.58282608,37940.0,37939.0,0.00028944]
[1610085708891,0.58282608,37940.0,37937.0,0.03214296]
[1610085709091,0.58282608,37940.0,37939.0,0.03214332]
[1610085709292,0.58282608,37940.0,37938.0,0.03214308]
[1610085709495,0.58282608,37940.0,37939.0,0.03214312]
[1610085710093,0.58282608,37940.0,37936.0,0.03214301]
[1610085710292,0.58282608,37940.0,37939.0,0.03214282]
[1610085710492,0.58282608,37940.0,37939.0,0.53214282]
[1610085710694,0.58282608,37940.0,37939.0,0.5]
[1610085710895,0.58282608,37940.0,37939.0,0.53214305]
[1610085711996,0.58282608,37940.0,37939.0,0.03214305]
[1610085712396,0.58282608,37940.0,37937.0,0.03214122]
[1610085712700,0.58282608,37940.0,37939.0,0.03214124]
[1610085712898,0.58282608,37940.0,37938.0,0.03228541]
[1610085713297,0.58282608,37940.0,37939.0,0.03228534]
[1610085713801,0.58282608,37940.0,37938.0,0.03228554]
[1610085713998,0.58282608,37940.0,37939.0,0.03228558]
[1610085714197,0.58282608,37940.0,37938.0,0.03228502]
[1610085714500,0.58282608,37940.0,37939.0,0.03228504]
[1610085715096,0.58282608,37940.0,37939.0,0.5]
[1610085715298,0.58282608,37940.0,37939.0,0.53228411]
[1610085715699,0.58282608,37940.0,37939.0,0.5]
[1610085715899,0.58282608,37940.0,37939.0,0.53228547]
[1610085720603,2.08282608,37940.0,37939.0,0.38968547]
[1610085721707,4.15971783,37940.0,37939.0,0.22818692]
[1610085721907,4.44578423,37940.0,37909.0,0.09329]
[1610085722212,4.36778423,37940.0,37909.0,0.09329]
[1610085722407,4.36778423,37940.0,37910.0,0.03232124]
[1610085722610,0.43896003,37928.0,37910.0,0.03232124]
[1610085722810,3.59152608,37911.0,37900.0,0.03232229]
[1610085723207,5.09152608,37911.0,37889.0,0.2849]